[Event "2nd Cambridge Open 2024"]
[Site "Cambridge"]
[Date "2024.02.19"]
[Round "2.47"]
[White "Gardner, Phillip K"]
[Black "Myall, Ivan J"]
[Result "0-1"]
[ECO "C54"]
[WhiteElo "1769"]
[BlackElo "1951"]
[Annotator "RC"]
[PlyCount "100"]
[EventDate "2024.02.18"]
[EventType "swiss"]
[EventCountry "ENG"]
[SourceTitle "playchess.com"]
[Source "ChessBase"]
[SourceQuality "1"]
[TimeControl "5400+30"]

1. e4 {[%emt 0:00:03]} e5 {[%emt 0:00:13]} 2. Nf3 {[%emt 0:00:06]} Nc6 {[%emt 0:00:08]} 3. Bc4 {[%emt 0:00:05]} Bc5 {[%emt 0:00:25]} 4. c3 {[%emt 0:00:04]} Nf6 {[%emt 0:00:14]} 5. d4 {[%emt 0:00:03]} exd4 {[%emt 0:00:06]} 6. cxd4 {[%emt 0:00:06]} Bb4+ {[%emt 0:00:15]} 7. Bd2 {[%emt 0:00:05]} Bxd2+ {[%emt 0:00:15]} 8. Nbxd2 {[%emt 0:00:03]} d5 {[%emt 0:00:10]} 9. exd5 {[%emt 0:00:05]} Nxd5 {[%emt 0:00:06]} 10. Qb3 {[%emt 0:00:07]} Nce7 {[%emt 0:00:06]} 11. O-O {[%emt 0:00:14]} O-O {[%emt 0:00:07]} 12. Rfe1 {[%emt 0:00:21]} h6 {[%emt 0:01:03]} 13. Ne4 {[%emt 0:05:53]} c6 {[%emt 0:05:54]} 14. Nc5 {[%emt 0:07:29]} b6 {[%emt 0:07:35]} 15. Nd3 {[%emt 0:00:35]} Qd6 {[%emt 0:09:39]} 16. a4 {[%emt 0:03:03]} Be6 {[%emt 0:07:09]} 17. Rad1 {[%emt 0:01:37]} Rab8 {[%emt 0:03:38]} 18. Qa2 {[%emt 0:07:03]} a5 {[%emt 0:13:55]} 19. Nfe5 {[%emt 0:08:12]} Nf5 {[%emt 0:03:51]} 20. Nf3 {[%emt 0:01:10]} Rfd8 {[%emt 0:10:59]} 21. h3 {[%emt 0:03:41]} Qc7 {[%emt 0:03:12]} 22. Rc1 {[%emt 0:03:41]} Qd6 {[%emt 0:01:40]} 23. Rcd1 {[%emt 0:01:31]} Rdc8 {[%emt 0:01:58]} 24. Bb3 {[%emt 0:02:04]} Nfe7 {[%emt 0:06:35]} 25. Nfe5 {[%emt 0:02:26]} g5 {[%emt 0:00:59]} 26. g4 {[%emt 0:08:10]} Kg7 {[%emt 0:01:04]} 27. Rd2 {[%emt 0:04:06]} Rh8 {[%emt 0:00:46]} 28. f3 {[%emt 0:12:53]} h5 {[%emt 0:02:31]} 29. Kg2 {[%emt 0:05:57]} hxg4 {[%emt 0:00:55]} 30. fxg4 {[%emt 0:02:58]} Rh6 {[%emt 0:02:52]} 31. Rf2 {[%emt 0:01:29]} Rbh8 {[%emt 0:02:11]} 32. Rf3 {[%emt 0:00:34]} Ng8 {[%emt 0:09:00]} 33. Ref1 {[%emt 0:07:35]} Ngf6 {[%emt 0:00:25]} 34. Qa3 {[%emt 0:06:06]} Qc7 {[%emt 0:02:12]} 35. Re1 {[%emt 0:01:05]} Rh4 {[%emt 0:02:32]} 36. Rg3 {[%emt 0:01:21]} Nd7 {[%emt 0:00:52]} 37. Bd1 {[%emt 0:00:31]} Nxe5 {[%emt 0:00:29]} 38. Rxe5 {[%emt 0:00:21]} Qd8 {[%emt 0:00:36]} 39. Qa1 {[%emt 0:02:07]} Nf4+ {[%emt 0:00:54]} 40. Nxf4 {[%emt 0:01:10]} gxf4 {[%emt 0:00:01]} 41. Rd3 {[%emt 0:00:41]} Bd5+ {[%emt 0:00:02]} 42. Kh2 {[%emt 0:00:57]} f3 {[%emt 0:00:12]} 43. Qa3 {[%emt 0:03:33]} Rxh3+ {[%emt 0:00:09]} 44. Kg1 {[%emt 0:00:07]} Rh1+ {[%emt 0:00:51]} 45. Kf2 {[%emt 0:00:04]} Qh4+ {[%emt 0:00:34]} 46. Ke3 {[%emt 0:00:12]} Re1+ {[%emt 0:01:10]} 47. Kd2 {[%emt 0:00:13]} Rxe5 {[%emt 0:00:30]} 48. dxe5 {[%emt 0:00:03]} Qg5+ {[%emt 0:00:14]} 49. Re3 {[%emt 0:00:28]} Rh2+ {[%emt 0:00:44]} 50. Kc3 {[%emt 0:00:28]} Qxe3# {[%emt 0:00:12]} 0-1

[Event "2nd Cambridge Open 2024"]
[Site "Cambridge"]
[Date "2024.02.20"]
[Round "3.1"]
[White "Wachinger, Nikolas"]
[Black "Tiviakov, Sergei"]
[Result "1/2-1/2"]
[ECO "B51"]
[WhiteElo "2437"]
[BlackElo "2537"]
[Annotator "TA"]
[PlyCount "154"]
[EventDate "2024.02.18"]
[EventType "swiss"]
[EventCountry "ENG"]
[SourceTitle "playchess.com"]
[Source "ChessBase"]
[SourceQuality "1"]
[TimeControl "5400+30"]

{[%evp 62,154,0,-8,-8,-8,-8,-8,-8,-8,-8,-9,-3,-45,-45,-45,-45,-45,-45,-71,-71,-71,-71,-71,-71,-77,-77,-77,-77,-77,-77,-77,-71,-77,-52,-52,-52,-77,-9,-9,-9,-9,-9,-9,-9,-9,-9,-9,-9,-9,-9,-9,-9,-9,0,-19,-34,-34,-34,-34,-9,-9,0,-34,-34,-34,-47,-54,-54,-54,-54,-54,-54,-54,0,-54,-54,-54,-54,-54,-54,-54,-54,-54,-8,-9,0,-54,-9,-54,0,-54,0,-9,0]} 1. e4 {[%emt 0:00:04]} c5 {[%emt 0:00:05]} 2. Nf3 {[%emt 0:00:35]} Nc6 {[%emt 0:00:04]} 3. Bb5 {[%emt 0:00:15]} d6 {[%emt 0:00:04]} 4. O-O {[%emt 0:00:52]} Bd7 {[%emt 0:00:04]} 5. Re1 {[%emt 0:00:11]} Nf6 {[%emt 0:00:05]} 6. c3 {[%emt 0:00:06]} a6 {[%emt 0:00:04]} 7. Bf1 {[%emt 0:00:42]} e5 {[%emt 0:00:04]} 8. d4 {[%emt 0:01:27]} cxd4 {[%emt 0:00:05]} 9. cxd4 {[%emt 0:00:07]} Bg4 {[%emt 0:00:07]} 10. d5 {[%emt 0:00:29]} Nd4 {[%emt 0:00:06]} 11. Be3 {[%emt 0:00:15]} Nxf3+ {[%emt 0:00:14]} 12. gxf3 {[%emt 0:00:03]} Bd7 {[%emt 0:00:04]} 13. a4 {[%emt 0:05:54]} Be7 {[%emt 0:07:19]} 14. Nd2 {[%emt 0:02:07]} b5 {[%emt 0:20:47]} 15. axb5 {[%emt 0:15:39]} axb5 {[%emt 0:00:06]} 16. Qb3 {[%emt 0:02:32]} O-O {[%emt 0:01:16]} 17. Rxa8 {[%emt 0:19:47]} Qxa8 {[%emt 0:00:02]} 18. Rc1 {[%emt 0:00:11]} Qa5 {[%emt 0:06:38]} 19. Qc3 {[%emt 0:05:06]} Qxc3 {[%emt 0:02:16]} 20. Rxc3 {[%emt 0:00:18]} Rb8 {[%emt 0:00:34]} 21. Rc7 {[%emt 0:08:06]} Bd8 {[%emt 0:00:35]} 22. Ra7 {[%emt 0:00:04]} Kf8 {[%emt 0:00:36]} 23. b4 {[%emt 0:01:36]} Bb6 {[%emt 0:23:10]} 24. Ra6 {[%emt 0:03:17]} Bxe3 {[%emt 0:09:11]} 25. fxe3 {[%emt 0:01:36]} Ke7 {[%emt 0:00:02]} 26. Nb3 {[%emt 0:03:25]} Ne8 {[%emt 0:00:05]} 27. Na5 {[%emt 0:11:56]} Nc7 {[%emt 0:00:56]} 28. Nc6+ {[%emt 0:08:58]} Bxc6 {[%emt 0:00:14]} 29. Rxc6 {[%emt 0:00:03]} Rb7 {[%emt 0:01:29]} 30. f4 {[%emt 0:00:57]} exf4 {[%emt 0:04:18]} 31. exf4 {[%emt 0:00:29]} f5 {[%emt 0:00:09]} 32. e5 {[%emt 0:04:57]} Nxd5 {[%emt 0:00:06]} 33. exd6+ {[%emt 0:00:13]} Ke6 {[%emt 0:04:57]} 34. d7+ {[%emt 0:01:27]} Kxd7 {[%emt 0:00:05]} 35. Rc5 {[%emt 0:00:02]} Nxb4 {[%emt 0:02:03]} 36. Rxf5 {[%emt 0:00:14]} Kd6 {[%emt 0:00:15]} 37. Rxb5 {[%emt 0:01:04]} Rxb5 {[%emt 0:00:02]} 38. Bxb5 {[%emt 0:00:06]} Nd5 {[%emt 0:00:02]} 39. Bd3 {[%emt 0:00:56]} h6 {[%emt 0:00:06]} ({Don't play} 39... Nxf4 40. Bxh7 Ne6 41. Kf2 $11) 40. f5 {[%emt 0:00:08]} Ke5 {[%emt 0:00:03]} 41. Kf2 {[%emt 0:00:36]} Kf4 {[%emt 0:00:03]} 42. Ba6 {[%emt 0:01:07]} Ne3 {[%emt 0:00:13]} 43. Bc8 {[%emt 0:00:40]} Nxf5 {[%emt 0:00:07]} 44. Bb7 {[%emt 0:00:13]} Ne3 {[%emt 0:05:33]} 45. Bc6 {[%emt 0:00:24]} Ng4+ {[%emt 0:01:24]} 46. Kg2 {[%emt 0:00:17]} Ne5 {[%emt 0:00:07]} 47. Bb7 {[%emt 0:00:14]} Kg4 {[%emt 0:01:33]} 48. Bc8+ {[%emt 0:00:20]} Kh4 {[%emt 0:00:04]} 49. Bb7 {[%emt 0:00:20]} g5 {[%emt 0:01:26]} (49... h5 $17) 50. h3 $1 $11 {[%emt 0:01:21]} Nd3 {[%emt 0:00:39]} 51. Bc8 {[%emt 0:00:12]} Nf4+ {[%emt 0:00:20]} 52. Kh2 {[%emt 0:00:07]} Nd5 {[%emt 0:00:04]} 53. Bb7 {[%emt 0:00:24]} Nc3 {[%emt 0:01:01]} 54. Bf3 {[%emt 0:00:13]} Nb5 {[%emt 0:00:06]} 55. Bc6 {[%emt 0:00:42]} Nd4 {[%emt 0:00:16]} 56. Bb7 {[%emt 0:00:17]} Kh5 {[%emt 0:00:21]} 57. Be4 {[%emt 0:00:11]} Kh4 {[%emt 0:00:07]} 58. Bb7 $1 {[%emt 0:00:06]} Nf5 {[%emt 0:00:12]} 59. Bc6 {[%emt 0:00:42]} Ng7 {[%emt 0:00:26]} 60. Bb7 {[%emt 0:00:48]} Kh5 {[%emt 0:00:10]} 61. Be4 $1 {[%emt 0:00:07]} Kh4 {[%emt 0:00:04]} 62. Bb7 {[%emt 0:00:08]} Ne6 {[%emt 0:00:07]} 63. Bc6 {[%emt 0:00:24]} Nc5 {[%emt 0:02:07]} 64. Bd5 {[%emt 0:00:44]} Nd3 {[%emt 0:00:04]} 65. Bb7 {[%emt 0:00:30]} Nf2 {[%emt 0:00:10]} 66. Bc8 {[%emt 0:00:09]} Nd1 {[%emt 0:00:09]} 67. Bb7 {[%emt 0:00:48]} Nc3 {[%emt 0:00:15]} 68. Bf3 {[%emt 0:00:08]} Na4 {[%emt 0:00:04]} 69. Bc6 {[%emt 0:00:32]} Nb6 {[%emt 0:00:03]} 70. Be4 {[%emt 0:00:31]} Nd7 {[%emt 0:00:05]} 71. Bc6 {[%emt 0:00:36]} Nf6 {[%emt 0:00:04]} 72. Bb5 {[%emt 0:01:03]} Kh5 {[%emt 0:00:06]} (72... Ne4 $15) 73. Bd3 {[%emt 0:00:09]} Kh4 {[%emt 0:00:04]} 74. Bf5 {[%emt 0:00:23]} (74. Bb5 $1 $11) 74... Nh5 {[%emt 0:00:03]} 75. Bc8 {[%emt 0:00:47]} Ng7 {[%emt 0:00:13]} 76. Bb7 {[%emt 0:00:07]} Kh5 {[%emt 0:00:07]} 77. Be4 {[%emt 0:00:10]} Kh4 {[%emt 0:00:03]} 1/2-1/2

[Event "2nd Cambridge Open 2024"]
[Site "Cambridge"]
[Date "2024.02.20"]
[Round "3.2"]
[White "Fernandez, Daniel Howard"]
[Black "Roberson, Peter T"]
[Result "1-0"]
[ECO "B56"]
[WhiteElo "2525"]
[BlackElo "2424"]
[Annotator "TA"]
[PlyCount "73"]
[EventDate "2024.02.18"]
[EventType "swiss"]
[EventCountry "ENG"]
[SourceTitle "playchess.com"]
[Source "ChessBase"]
[SourceQuality "1"]
[TimeControl "5400+30"]

{[%evp 9,73,16,26,-33,-35,-24,-22,-30,-31,-30,-23,-30,-27,-31,-38,-18,-24,-22,-8,-20,-20,-21,-23,-12,-12,-12,0,-3,-16,-9,24,20,17,11,75,37,52,68,63,46,56,52,41,24,39,0,0,0,0,-39,0,-26,0,0,0,0,0,0,0,0,2685,2018,29976,29976,29975,29975]} 1. e4 {[%emt 0:03:45]} c5 {[%emt 0:00:09]} 2. Nf3 {[%emt 0:00:34]} d6 {[%emt 0:00:05]} 3. d4 {[%emt 0:00:04]} cxd4 {[%emt 0:00:04]} 4. Nxd4 {[%emt 0:01:10]} Nf6 {[%emt 0:00:10]} 5. Nc3 {[%emt 0:00:02]} Nc6 {[%emt 0:00:35]} 6. Nd5 {[%emt 0:03:31]} ({Better is} 6. Bg5 $11) 6... Nxd5 $1 $15 {[%emt 0:02:48]} 7. exd5 {[%emt 0:00:22]} Qa5+ {[%emt 0:00:18]} 8. Bd2 $1 {[%emt 0:00:21] The position is equal.} Qxd5 {[%emt 0:00:04]} 9. Nb5 {[%emt 0:00:08] [#] Threatens to win with Nc7+.} Qe6+ $1 {[%emt 0:00:23]} 10. Be2 {[%emt 0:01:48] Active counter play!} Qd7 {[%emt 0:00:06] Repels Nc7+} 11. c4 {[%emt 0:01:49]} e6 {[%emt 0:06:31]} 12. Bf4 {[%emt 0:04:38]} e5 {[%emt 0:04:48][%cal Oa7a6] Strongly threatening ...a6!} 13. Be3 {[%emt 0:01:27]} Be7 {[%emt 0:06:36]} 14. Qd2 {[%emt 0:00:21]} O-O {[%emt 0:09:37]} 15. Rd1 {[%emt 0:00:07][%cal Oe1g1]} Qd8 {[%emt 0:21:21]} 16. O-O {[%emt 0:04:10][%cal Of2f4]} Be6 {[%emt 0:00:41]} 17. f4 {[%emt 0:07:34]} Qd7 {[%emt 0:08:01]} 18. fxe5 {[%emt 0:11:14]} Nxe5 {[%emt 0:00:20]} 19. b3 {[%emt 0:00:03]} ({Reject} 19. Nxd6 Bxd6 20. Qxd6 Qxd6 (20... Nxc4 $2 21. Qxd7 Bxd7 22. Bxc4 $18) 21. Rxd6 Bxc4 (21... Nxc4 22. Rxe6 fxe6 23. Bxc4 $18) 22. Bxc4 Nxc4 $17) 19... a6 {[%emt 0:06:10]} 20. Nxd6 {[%emt 0:00:37]} Rad8 {[%emt 0:02:12][%cal Re7d6]} 21. c5 {[%emt 0:02:29]} Ng4 {[%emt 0:07:08]} (21... Qc6 $11) 22. Bg5 {[%emt 0:04:35]} Bxg5 {[%emt 0:02:21]} 23. Qxg5 {[%emt 0:00:04]} f6 $1 {[%emt 0:00:40]} 24. Qf4 {[%emt 0:01:48] aiming for Nf5.} Ne5 {[%emt 0:01:27]} 25. Bf3 {[%emt 0:10:43]} Rb8 {[%emt 0:10:50]} 26. Rfe1 {[%emt 0:04:30]} Qc7 {[%emt 0:01:01]} 27. Rxe5 {[%emt 0:00:08]} fxe5 {[%emt 0:00:05]} 28. Qxe5 {[%emt 0:00:06]} Rf6 {[%emt 0:02:51]} 29. b4 {[%emt 0:01:03]} b6 {[%emt 0:05:23]} 30. Re1 {[%emt 0:05:46] Bd5 would now be deadly.} bxc5 {[%emt 0:01:40]} ({Of course not} 30... Bxa2 $6 31. Bd5+ Bxd5 32. Qxd5+ Kh8 33. Ne8 $16) 31. Bd5 $1 {[%emt 0:00:40]} Bxd5 {[%emt 0:00:23]} 32. Qxd5+ {[%emt 0:00:04]} Kf8 {[%emt 0:01:06]} 33. bxc5 {[%emt 0:00:41]} Rd8 {[%emt 0:00:32]} 34. h3 {[%emt 0:02:33]} g6 $2 {[%emt 0:00:27][%mdl 8192] [#]} (34... h6 $11) 35. Qe5 $1 $18 {[%emt 0:00:51]} Rdxd6 {[%emt 0:00:31]} 36. Qe8+ {[%emt 0:00:05]} Kg7 {[%emt 0:00:02]} 37. Re7+ {[%emt 0:00:14] Weighted Error Value: White=0.10 (very precise) /Black=0.28 (precise) .  Loses game:     	---       	Black=1      Mistake:       	---       	Black=1      Inaccurate:     	White=4     	Black=4      OK:         	White=12    	Black=9      Best:        	---       	Black=5      Strong:       	White=3     	Black=3} ({Not} 37. cxd6 Qxd6 38. Qe7+ Qxe7 39. Rxe7+ Rf7 $11) 1-0

[Event "2nd Cambridge Open 2024"]
[Site "Cambridge"]
[Date "2024.02.20"]
[Round "3.3"]
[White "Hanley, Craig A"]
[Black "Royal, Shreyas"]
[Result "1-0"]
[ECO "D00"]
[WhiteElo "2431"]
[BlackElo "2459"]
[Annotator "RC"]
[PlyCount "75"]
[EventDate "2024.02.18"]
[EventType "swiss"]
[EventCountry "ENG"]
[SourceTitle "playchess.com"]
[Source "ChessBase"]
[SourceQuality "1"]
[TimeControl "5400+30"]

1. d4 {[%emt 0:00:04]} Nf6 {[%emt 0:00:12]} 2. Bf4 {[%emt 0:00:59]} d5 {[%emt 0:00:42]} 3. e3 {[%emt 0:03:40]} c5 {[%emt 0:01:24]} 4. c3 {[%emt 0:04:31]} Nc6 {[%emt 0:00:17]} 5. Nd2 {[%emt 0:01:49]} Qb6 {[%emt 0:04:20]} 6. Qb3 {[%emt 0:02:14]} c4 {[%emt 0:01:47]} 7. Qc2 {[%emt 0:00:10]} g6 {[%emt 0:02:57]} 8. h3 {[%emt 0:03:04]} Bg7 {[%emt 0:02:07]} 9. Ngf3 {[%emt 0:00:29]} O-O {[%emt 0:02:10]} 10. Be2 {[%emt 0:01:33]} Bf5 {[%emt 0:05:40]} 11. Qc1 {[%emt 0:00:03]} Nd7 {[%emt 0:06:46]} 12. e4 {[%emt 0:16:32]} dxe4 {[%emt 0:09:38]} 13. Nxc4 {[%emt 0:00:40]} Qd8 {[%emt 0:00:06]} 14. Nfe5 {[%emt 0:12:26]} Ndxe5 {[%emt 0:08:38]} 15. dxe5 {[%emt 0:05:00]} b5 {[%emt 0:08:00]} 16. Ne3 {[%emt 0:00:13]} Bd7 {[%emt 0:00:06]} 17. Qc2 {[%emt 0:07:04]} Nxe5 {[%emt 0:01:03]} 18. Bxe5 {[%emt 0:00:42]} Bxe5 {[%emt 0:00:09]} 19. Qxe4 {[%emt 0:00:07]} Bg7 {[%emt 0:06:49]} 20. O-O-O {[%emt 0:09:20]} a6 {[%emt 0:04:08]} 21. Qb7 {[%emt 0:01:47]} Qa5 {[%emt 0:03:08]} 22. Qxd7 {[%emt 0:00:36]} Qxa2 {[%emt 0:00:42]} 23. Qd5 {[%emt 0:03:07]} Qa4 {[%emt 0:00:20]} 24. Kb1 {[%emt 0:02:00]} Rfc8 {[%emt 0:02:26]} 25. Rd3 {[%emt 0:02:18]} e6 {[%emt 0:02:57]} 26. Qa2 {[%emt 0:02:38]} Qh4 {[%emt 0:00:06]} 27. Bf3 {[%emt 0:04:21]} Ra7 {[%emt 0:00:16]} 28. Qa5 {[%emt 0:01:48]} h5 {[%emt 0:02:52]} 29. Rhd1 {[%emt 0:04:47]} Rcc7 {[%emt 0:02:01]} 30. g3 {[%emt 0:02:31]} Qf6 {[%emt 0:00:15]} 31. Nc2 {[%emt 0:00:13]} Qf5 {[%emt 0:01:28]} 32. h4 {[%emt 0:00:24]} e5 {[%emt 0:01:10]} 33. Ne3 {[%emt 0:03:18]} Qe6 {[%emt 0:01:54]} 34. Bd5 {[%emt 0:00:51]} Qe7 {[%emt 0:00:39]} 35. Qb6 {[%emt 0:00:27]} e4 {[%emt 0:01:06]} 36. R3d2 {[%emt 0:00:21]} a5 {[%emt 0:01:23]} 37. Qxg6 {[%emt 0:00:30]} b4 {[%emt 0:00:15]} 38. Nf5 {[%emt 0:02:07]} 1-0

[Event "2nd Cambridge Open 2024"]
[Site "Cambridge"]
[Date "2024.02.20"]
[Round "3.4"]
[White "Haubro, Martin"]
[Black "Willow, Jonah B"]
[Result "0-1"]
[ECO "B45"]
[WhiteElo "2418"]
[BlackElo "2434"]
[Annotator "TA"]
[PlyCount "72"]
[EventDate "2024.02.18"]
[EventType "swiss"]
[EventCountry "ENG"]
[SourceTitle "playchess.com"]
[Source "ChessBase"]
[SourceQuality "1"]
[TimeControl "5400+30"]

{[%evp 12,72,1,6,13,-12,13,8,28,20,29,30,29,35,30,45,41,29,37,14,34,31,28,0,0,0,50,29,33,25,22,33,117,108,106,107,99,107,133,124,133,122,144,140,135,138,135,0,0,-262,-275,-274,-280,-280,-278,-283,-272,-294,-281,-297,-266,-343,-342]} 1. e4 {[%emt 0:00:03]} c5 {[%emt 0:00:05]} 2. Nf3 {[%emt 0:00:03]} e6 {[%emt 0:00:05]} 3. d4 {[%emt 0:00:03]} cxd4 {[%emt 0:00:04]} 4. Nxd4 {[%emt 0:00:03]} Nf6 {[%emt 0:00:05]} 5. Nc3 {[%emt 0:00:15]} Nc6 {[%emt 0:00:04]} 6. a3 {[%emt 0:00:04]} Be7 {[%emt 0:00:34]} 7. Be3 {[%emt 0:03:21]} O-O {[%emt 0:00:28]} 8. Be2 {[%emt 0:00:20]} d6 {[%emt 0:00:36]} 9. Qd3 {[%emt 0:02:51]} e5 {[%emt 0:04:06] The position is equal.} 10. Nb3 {[%emt 0:01:56]} Be6 {[%emt 0:05:42]} 11. Nd5 {[%emt 0:32:31]} Bxd5 {[%emt 0:05:41]} 12. exd5 {[%emt 0:01:20]} e4 {[%emt 0:00:10]} 13. Qb5 {[%emt 0:01:51]} Ne5 {[%emt 0:01:36]} 14. Qxb7 {[%emt 0:01:15][%cal Oe1c1]} a5 {[%emt 0:08:26]} 15. Rd1 {[%emt 0:22:17]} a4 {[%emt 0:02:39][%cal Oa8b8]} 16. Nd4 {[%emt 0:01:32]} Rb8 {[%emt 0:05:48]} 17. Qa7 {[%emt 0:00:04]} Ra8 {[%emt 0:04:13]} 18. Qb7 {[%emt 0:00:05]} Rb8 {[%emt 0:01:28][%cal Ba8b8,Bb8b2,Bb2c2][%mdl 32]} 19. Qa6 $36 {[%emt 0:10:09][%mdl 2048] Black is under pressure.} Nxd5 {[%emt 0:11:23]} 20. Nc6 {[%emt 0:00:57]} Nxc6 {[%emt 0:00:07]} 21. Rxd5 {[%emt 0:00:08]} Qc8 {[%emt 0:07:52]} ({Better is} 21... Ne5 $14) 22. Qxa4 $16 {[%emt 0:06:25]} Rxb2 {[%emt 0:01:31]} 23. O-O {[%emt 0:01:01]} (23. Qxe4 Qe6 24. Qxe6 fxe6 $14) 23... Ne5 {[%emt 0:05:56]} 24. Qxe4 {[%emt 0:00:25]} f5 {[%emt 0:01:20]} 25. Qa4 {[%emt 0:01:03]} Rxc2 {[%emt 0:03:42]} 26. Ba6 {[%emt 0:03:05] This pair of bishops is nice.} Qc7 {[%emt 0:00:53]} 27. Bd4 {[%emt 0:01:55] Hoping for Bxe5.} Bf6 {[%emt 0:06:28]} 28. Qb3 {[%emt 0:01:19][%csl LRd6,LRe5]} Kh8 {[%emt 0:00:31]} 29. Bb6 {[%emt 0:01:04]} (29. Rd1 $16) 29... Qc6 $1 $11 {[%emt 0:00:36][%cal Oc2b2] White must now prevent ...Rb2!} 30. Bb5 $2 {[%emt 0:04:31][%mdl 8192]} (30. Bd4 $11) 30... Rc3 $1 $19 {[%emt 0:00:44] Black has a decisive advantage.} 31. Bxc6 {[%emt 0:02:59]} Rxb3 {[%emt 0:00:02]} 32. Rb5 {[%emt 0:00:55] [#]} Rxb5 {[%emt 0:00:31]} (32... Rxa3 33. Bb7 $11) 33. Bxb5 {[%emt 0:00:01]} Rb8 {[%emt 0:00:06]} 34. f4 {[%emt 0:00:39] [#]} ({Of course not} 34. Rc1 g6 (34... Rxb6 35. Rc8+) 35. g3 Rxb6) 34... Ng6 {[%emt 0:03:10]} (34... Rxb6 35. fxe5 dxe5 36. a4 $17) 35. Rc1 {[%emt 0:00:40]} h5 {[%emt 0:02:16][%cal Og6e7]} ({Stronger than} 35... Rxb6 36. Rc8+) 36. Rc6 {[%emt 0:00:41] [#]} Rxb6 $1 {[%emt 0:00:07][%mdl 512] Weighted Error Value: White=0.27 (precise) /Black=0.10 (very precise) .  Loses game:     	White=1     	---        Mistake:       	White=1     	Black=1      OK:         	White=15    	Black=11     Best:        	White=1     	Black=5      Strong:       	---       	Black=2} 0-1

[Event "2nd Cambridge Open 2024"]
[Site "Cambridge"]
[Date "2024.02.20"]
[Round "3.5"]
[White "Adams, Michael"]
[Black "Wells, Peter K"]
[Result "1-0"]
[ECO "B83"]
[WhiteElo "2674"]
[BlackElo "2341"]
[Annotator "TA"]
[PlyCount "59"]
[EventDate "2024.02.18"]
[EventType "swiss"]
[EventCountry "ENG"]
[SourceTitle "playchess.com"]
[Source "ChessBase"]
[SourceQuality "1"]
[TimeControl "5400+30"]

{[%evp 18,59,71,57,66,27,56,54,54,53,79,84,83,85,125,118,119,109,110,0,60,51,52,61,54,26,385,378,365,373,494,469,698,684,634,614,1055,658,29978,29977,29983,29984,29984,29985]} 1. e4 {[%emt 0:00:03]} c5 {[%emt 0:06:24]} 2. Nf3 {[%emt 0:00:09]} e6 {[%emt 0:00:13]} 3. d4 {[%emt 0:01:41]} cxd4 {[%emt 0:00:05]} 4. Nxd4 {[%emt 0:00:04]} Nf6 {[%emt 0:00:09]} 5. Nc3 {[%emt 0:00:07]} Nc6 {[%emt 0:00:17]} 6. Be2 {[%emt 0:01:18]} d6 {[%emt 0:06:28]} 7. Be3 {[%emt 0:01:39]} Be7 {[%emt 0:01:45]} 8. Qd2 {[%emt 0:00:54]} a6 {[%emt 0:08:42]} 9. O-O-O {[%emt 0:00:37]} Nxd4 {[%emt 0:06:21]} 10. Qxd4 {[%emt 0:00:36]} e5 {[%emt 0:09:41]} 11. Qd3 {[%emt 0:02:37] White is more active.} b5 {[%emt 0:10:16]} 12. Bg5 {[%emt 0:10:41]} b4 {[%emt 0:05:47] White is slightly better.} 13. Bxf6 {[%emt 0:00:35]} bxc3 {[%emt 0:00:07]} 14. Bxe7 $1 {[%emt 0:00:43]} (14. Bxg7 cxb2+ 15. Kb1 Rg8 $11) 14... cxb2+ {[%emt 0:00:26]} 15. Kb1 $1 {[%emt 0:02:23]} Kxe7 {[%emt 0:00:37] [#]} 16. f4 $1 {[%emt 0:10:13] fxe5 would now be deadly.} exf4 {[%emt 0:18:47]} 17. e5 $1 {[%emt 0:23:27]} (17. Kxb2 $2 Qb6+ 18. Ka1 Be6 $19) 17... d5 {[%emt 0:00:13]} 18. Bf3 {[%emt 0:00:35]} (18. Kxb2 Qa5 19. Qa3+ Qxa3+ 20. Kxa3 Be6 $17) (18. c4 $16) 18... Qa5 {[%emt 0:05:43]} ({Black should try} 18... Be6 $1 $11) 19. Bxd5 $14 {[%emt 0:04:40]} Rd8 $1 {[%emt 0:01:36]} 20. Qe4 {[%emt 0:01:15]} Rb8 {[%emt 0:04:14] aiming for ...Rb4.} 21. Bc4 $40 {[%emt 0:13:46][%mdl 128] Strongly threatening Rxd8. White has some attack. Some like it hot} Rb4 $2 {[%emt 0:03:53][%mdl 8192] This move loses the game for Black.} (21... Rxd1+ $1 $11 {and Black has nothing to worry.} 22. Rxd1 Bg4 23. Qxf4 Bxd1 24. Qxf7+ Kd8 25. Qf8+ Kc7 26. Qd6+ Kb7 27. Bd5+ Ka7 28. Qd7+ Kb6 29. Qe6+ Kc5 (29... Kb5 30. Qc6+ Kb4 31. Qc4+ Ka3 32. Qd3+ Kb4 33. Qe4+ Kb5 34. Qc4+ Kb6 35. Qc6+ Ka7 36. Qd7+ Kb6 37. Qe6+ Kc5 38. Qd6+ Kd4 39. Be6+ Ke3 40. Qxd1 $11) 30. Qd6+ Kd4 31. Bb3+ Ke4 (31... Kc3 32. Qd3+ Kb4 33. c3+ Ka3 34. Qd6+) 32. Qxb8 Qxe5) 22. Qxf4 $18 {[%emt 0:09:34][%csl Gc4][%cal Rf4f7]} Rxc4 {[%emt 0:08:35]} 23. Qxc4 {[%emt 0:00:13]} Be6 {[%emt 0:00:02]} 24. Qh4+ {[%emt 0:00:10]} f6 {[%emt 0:00:03]} (24... Ke8 $142 25. Rxd8+ (25. Kxb2 $2 Qxa2+ 26. Kc3 Qa3#) 25... Qxd8 26. Qxd8+ (26. Qxh7 Qd5 $11) 26... Kxd8 27. Rd1+ (27. Kxb2 Kc7 $18) 27... Kc7) 25. exf6+ {[%emt 0:01:58]} (25. Kxb2 $2 {is a self mate.} Qxa2+ 26. Kc3 Qa3#) 25... Kf7 {[%emt 0:00:03][%csl Ge6][%cal Ra5a2] [#]} 26. a4 {[%emt 0:00:10]} (26. Kxb2 $2 {gets mated.} Qxa2+ 27. Kc3 Qa3#) 26... Rc8 {[%emt 0:02:18]} 27. fxg7 {[%emt 0:03:37] Threatens to win with Rhf1+.} ({Weaker is} 27. Qxh7 Ba2+ 28. Kxa2 b1=B+ 29. Kxb1 Qb4+ 30. Kc1 Qa3+ 31. Kd2 Qc3+ 32. Ke2 Re8+ 33. Kf1 Qxf6+ 34. Kg1 Qb6+ 35. Kf1 Qf6+ 36. Kg1 Qb6+ 37. Kf1 Qf6+ $11) 27... Ba2+ {[%emt 0:00:43]} 28. Kxa2 {[%emt 0:02:46] White mates.} b1=Q+ {[%emt 0:00:14]} 29. Kxb1 {[%emt 0:01:07]} Qb6+ {[%emt 0:00:19]} 30. Ka1 {[%emt 0:00:15] Weighted Error Value: White=0.24 (precise) /Black=0.72.  Loses game:     	---       	Black=1      Mistake:       	White=1     	Black=2      Inaccurate:     	White=2     	Black=4      OK:         	White=4     	Black=5      Best:        	White=3     	Black=1      Strong:       	White=4     	Black=1} 1-0